bitfinex/quotes_SOLUSD_20251103
["timestamp","ask_amount","ask_price","bid_price","bid_amount"]
[1762181686166,7.88356281,176.5,176.47,0.2]
[1762181686372,4.83394891,176.49,176.47,0.2]
[1762181686755,4.83394891,176.48,176.47,0.2]
[1762181687184,5.55394891,176.48,176.47,0.2]
[1762181687360,4.83394891,176.49,176.47,0.2]
[1762181688181,4.83394891,176.48,176.47,0.2]
[1762181688880,5.55394891,176.48,176.47,0.2]
[1762181689179,15.48493817,176.48,176.47,0.2]
[1762181689379,19.24333323,176.48,176.47,0.2]
[1762181690189,39.83533323,176.48,176.47,0.2]
[1762181690379,4.83394891,176.41,176.35,5.8703623]
[1762181690581,5.51394891,176.43,176.36,11.40415223]
[1762181690886,4.83394891,176.44,176.37,4.83394891]
[1762181691094,3.75357766,176.45,176.38,4.83394891]
[1762181691282,3.75357766,176.45,176.4,4.83394891]
[1762181691665,3.75357766,176.45,176.41,5.53394891]
[1762181691957,20.592,176.47,176.41,5.53394891]
[1762181692162,3.75357766,176.46,176.41,11.20239962]
[1762181692569,3.75357766,176.46,176.41,6.36845071]
[1762181693179,3.75357766,176.46,176.42,0.7]
[1762181694186,3.75357766,176.46,176.42,6.3682179]
[1762181695195,3.75357766,176.46,176.42,0.7]
[1762181696000,3.75357766,176.46,176.36,0.2]
[1762181696001,4.83394891,176.43,176.36,0.2]
[1762181696202,4.83394891,176.4,176.36,0.2]
[1762181696402,4.83394891,176.4,176.36,0.9]
[1762181696903,4.83394891,176.4,176.36,5.87017252]
[1762181697097,4.83394891,176.4,176.37,0.7]
[1762181697597,4.83394891,176.42,176.37,0.7]
[1762181697811,6.71849143,176.43,176.37,5.53394891]
[1762181698010,6.71849143,176.43,176.37,0.7]
[1762181698182,4.83394891,176.42,176.37,6.36958591]
[1762181698591,11.55244034,176.43,176.38,0.7]
[1762181698795,6.71849143,176.43,176.4,4.83394891]
[1762181698996,3.75357766,176.45,176.41,20.592]
[1762181699207,3.75357766,176.47,176.43,4.83394891]
[1762181699394,6.7175683,176.48,176.43,4.83394891]
[1762181699594,6.7175683,176.48,176.44,0.7]
[1762181700077,3.75357766,176.47,176.44,0.7]
[1762181700275,3.75357766,176.47,176.41,31.79449014]
[1762181700490,3.75357766,176.46,176.41,11.20249014]
[1762181700701,3.75357766,176.48,176.45,4.83394891]
[1762181700902,4.83394891,176.54,176.42,21.292]
[1762181700903,3.75357766,176.52,176.47,4.83394891]
[1762181701105,3.75357766,176.53,176.51,4.83394891]
[1762181701412,3.75357766,176.55,176.52,4.83394891]
[1762181701709,3.75357766,176.54,176.52,4.83394891]
[1762181701895,3.75357766,176.55,176.5,4.83394891]
[1762181702093,8.58752657,176.54,176.47,5.53394891]
[1762181702292,3.75357766,176.53,176.48,0.7]
[1762181702490,3.75357766,176.52,176.49,4.83394891]
[1762181702691,3.75357766,176.54,176.51,4.83394891]
[1762181702896,3.75357766,176.53,176.49,4.83394891]
[1762181703192,3.75357766,176.52,176.48,5.53394891]
[1762181703392,3.75357766,176.54,176.49,4.83394891]
[1762181703592,3.75357766,176.53,176.49,5.53394891]
[1762181703793,3.75357766,176.52,176.5,4.83394891]
[1762181703994,3.75357766,176.54,176.5,4.83394891]
[1762181704205,3.75357766,176.53,176.5,5.53394891]
[1762181704417,2.96264465,176.56,176.52,4.83394891]
[1762181704597,3.75138822,176.55,176.51,5.53394891]
[1762181704784,3.75138822,176.54,176.51,5.53394891]
[1762181704984,3.75138822,176.53,176.51,5.53394891]
[1762181705184,2.9625894,176.55,176.5,4.83394891]
[1762181705185,3.75138822,176.52,176.5,4.83394891]
[1762181705496,2.9625894,176.55,176.5,10.49961028]
[1762181705805,3.75333708,176.54,176.53,4.83394891]
[1762181706220,3.75333708,176.56,176.53,5.53394891]
[1762181706511,3.75751969,176.58,176.55,4.83394891]
[1762181706713,2.96200463,176.59,176.57,4.83394891]
[1762181706882,3.75752238,176.58,176.57,4.83394891]
[1762181707605,3.75752238,176.58,176.57,5.53394891]
[1762181707782,3.76200025,176.61,176.57,5.53394891]
[1762181707981,3.76200025,176.6,176.58,0.7]
[1762181708209,0.1,176.65,176.58,11.19710442]
[1762181708210,3.76491434,176.59,176.58,11.19710442]
[1762181709507,3.76491434,176.59,176.58,5.53394891]
[1762181709713,3.76491434,176.59,176.58,0.7]
[1762181709902,3.76491434,176.59,176.58,11.19710442]
[1762181710094,3.77273723,176.59,176.58,11.19710442]
[1762181710886,3.77273723,176.59,176.58,5.53394891]
[1762181711095,3.77273723,176.59,176.58,0.7]
[1762181711904,3.77273723,176.59,176.54,14.16094574]
[1762181711905,3.77273723,176.59,176.54,0.7]
[1762181712100,4.69689961,176.6,176.54,0.7]
[1762181712101,8.46963684,176.58,176.54,0.7]
[1762181712402,3.77273723,176.57,176.56,10.49774591]
[1762181712912,3.77273723,176.57,176.56,5.53394891]
[1762181713796,3.77273723,176.57,176.54,6.36441083]
[1762181713996,3.77273723,176.57,176.51,5.53394891]
[1762181713997,8.46963684,176.56,176.51,5.53394891]
[1762181714314,4.69689961,176.54,176.48,5.53394891]
[1762181714506,3.77273723,176.53,176.52,4.83394891]
[1762181715011,3.77273723,176.53,176.52,5.53394891]
[1762181715320,3.77273723,176.53,176.52,0.7]
[1762181715696,3.77273723,176.53,176.52,5.53394891]
[1762181716511,3.77273723,176.53,176.52,11.19902935]
[1762181716715,3.77273723,176.53,176.52,0.7]
[1762181717019,3.77273723,176.53,176.52,11.19902935]
[1762181717595,3.77273723,176.53,176.52,6.36508044]
[1762181717920,3.77273723,176.53,176.52,0.7]
[1762181718124,3.77273723,176.53,176.51,10.49927265]
[1762181718291,3.77273723,176.52,176.49,5.66597963]
[1762181718492,3.77273723,176.51,176.5,4.83394891]
[1762181718791,4.69689961,176.55,176.5,4.83394891]
[1762181718792,4.69689961,176.57,176.5,5.53394891]
[1762181719022,4.69689961,176.57,176.52,4.83394891]
[1762181719023,3.78110986,176.56,176.52,4.83394891]
[1762181719314,3.78110986,176.55,176.5,0.7]
[1762181719620,3.78110986,176.54,176.52,4.83394891]
[1762181719809,3.78110986,176.53,176.49,19.83108813]
[1762181720120,4.69689961,176.58,176.49,19.83108813]
[1762181720313,3.77962753,176.57,176.5,0.7]
[1762181720491,3.77962753,176.56,176.51,5.66540139]
[1762181720695,3.77962753,176.55,176.48,0.7]
[1762181720914,4.83394891,176.53,176.46,4.83394891]
[1762181721123,4.69689961,176.55,176.51,4.83394891]
[1762181721124,3.77962753,176.52,176.51,4.83394891]
[1762181721297,3.77962753,176.52,176.51,5.53394891]
[1762181721622,3.77962753,176.52,176.48,5.53394891]
[1762181721793,3.77962753,176.51,176.49,4.83394891]
[1762181721994,5.37689961,176.55,176.48,4.83394891]
[1762181721995,3.77962753,176.5,176.48,4.83394891]
[1762181722193,3.77893259,176.49,176.45,5.53394891]
[1762181722469,4.83394891,176.52,176.45,5.53394891]
[1762181722719,3.77956695,176.51,176.45,11.20123155]
[1762181722900,3.77956695,176.5,176.45,11.20123155]
[1762181723104,3.77956695,176.49,176.43,4.83394891]
[1762181723302,3.77956695,176.48,176.44,5.53394891]
[1762181723528,3.77956695,176.47,176.44,0.7]
[1762181723696,3.77956695,176.5,176.45,0.7]
[1762181723895,32.68,176.54,176.45,0.7]
[1762181723896,3.77956695,176.49,176.45,0.7]
[1762181724202,3.77956695,176.53,176.45,0.7]
[1762181724406,3.77956695,176.52,176.45,0.7]
[1762181724608,3.77956695,176.51,176.48,4.83394891]
[1762181724810,3.77956695,176.5,176.46,4.83394891]
[1762181725012,3.77956695,176.51,176.46,4.83394891]
[1762181725323,3.77956695,176.5,176.45,0.7]
[1762181725518,3.77956695,176.51,176.46,4.83394891]
[1762181725833,3.77956695,176.5,176.47,4.83394891]
[1762181726015,3.77956695,176.53,176.48,4.83394891]
[1762181726245,3.77956695,176.52,176.47,0.7]
[1762181726558,3.77956695,176.51,176.48,4.83394891]
[1762181726762,5.37689961,176.54,176.49,4.83394891]
[1762181726763,3.77956695,176.53,176.49,4.83394891]
[1762181727066,3.77956695,176.52,176.49,4.83394891]
[1762181727234,3.77956695,176.53,176.48,4.83394891]
[1762181727443,3.77956695,176.52,176.48,4.83394891]
[1762181727641,3.77956695,176.53,176.48,4.83394891]
[1762181727835,3.77956695,176.52,176.48,4.83394891]
[1762181728042,3.77956695,176.53,176.48,4.83394891]
[1762181728262,3.77956695,176.53,176.49,4.83394891]
[1762181728558,3.77956695,176.54,176.51,10.49924357]
[1762181728758,4.45956695,176.56,176.51,10.49924357]
[1762181728937,4.45956695,176.56,176.51,4.83394891]
[1762181729140,0.68,176.55,176.5,4.83394891]
[1762181729540,0.68,176.55,176.5,5.53394891]
[1762181729855,3.77956695,176.56,176.5,11.19955986]
[1762181730049,9.29351586,176.56,176.5,5.53394891]
[1762181730838,9.29351586,176.56,176.5,11.19958075]
[1762181731037,9.29351586,176.56,176.5,5.53394891]
[1762181731638,9.29351586,176.56,176.5,11.19963032]
[1762181731862,9.29351586,176.56,176.5,5.53394891]
[1762181731863,59.29351586,176.56,176.5,5.53394891]
[1762181732037,3.77956695,176.55,176.5,5.53394891]
[1762181732234,3.77956695,176.55,176.5,0.7]
[1762181732444,3.77956695,176.55,176.5,10.4996095]
[1762181732660,3.77956695,176.56,176.52,5.66508044]
[1762181732870,3.77956695,176.56,176.52,10.49902935]
[1762181733038,3.77956695,176.56,176.53,5.55394891]
[1762181733238,4.69689961,176.61,176.55,4.83394891]
[1762181733438,3.78315278,176.62,176.58,4.83394891]
[1762181733663,0.67,176.64,176.59,4.83394891]
[1762181733664,3.78315278,176.63,176.59,4.83394891]
[1762181733867,3.78315278,176.63,176.54,0.72]
[1762181733868,3.78315278,176.62,176.57,4.83394891]
[1762181734166,3.78315278,176.62,176.56,4.83394891]
[1762181734462,3.78315278,176.62,176.58,4.83394891]
[1762181734663,3.78315278,176.62,176.57,5.55394891]
[1762181735068,3.78315278,176.62,176.57,11.21733806]
[1762181735241,3.78315278,176.62,176.58,4.83394891]
[1762181735568,3.78315278,176.63,176.57,11.21742124]
[1762181735746,9.28710169,176.63,176.57,5.55394891]
[1762181735947,9.28710169,176.63,176.57,11.21738662]
[1762181736274,4.45315278,176.63,176.57,5.55394891]
[1762181736645,4.45315278,176.63,176.57,11.21739064]
[1762181736852,4.45315278,176.63,176.54,14.16047967]
[1762181736853,15.43493817,176.62,176.56,4.83394891]
[1762181737056,3.78315278,176.61,176.56,4.83394891]
[1762181737258,3.78315278,176.61,176.58,4.83394891]
[1762181737477,26.10106118,176.64,176.57,5.55394891]
[1762181737478,3.78315278,176.62,176.57,5.55394891]
[1762181737662,3.78315278,176.63,176.57,5.55394891]
[1762181737858,3.78315278,176.62,176.57,5.55394891]
[1762181738057,3.78315278,176.63,176.57,5.55394891]
[1762181738263,3.78315278,176.62,176.58,4.83394891]
[1762181738457,3.78315278,176.63,176.59,4.83394891]
[1762181738653,3.78315278,176.63,176.58,4.83394891]
[1762181739062,3.78315278,176.62,176.58,4.83394891]
[1762181739250,4.45315278,176.62,176.58,4.83394891]
[1762181739447,4.45315278,176.61,176.57,4.83394891]
[1762181739649,4.45315278,176.61,176.52,4.83394891]
[1762181739650,4.83394891,176.58,176.52,4.83394891]
[1762181739859,3.78315278,176.57,176.53,4.83394891]
[1762181740043,3.78315278,176.58,176.53,4.83394891]
[1762181740248,3.78315278,176.57,176.52,4.83394891]
[1762181740447,5.50394891,176.58,176.52,4.83394891]
[1762181740448,3.78315278,176.56,176.52,4.83394891]
[1762181740648,3.78315278,176.55,176.52,4.83394891]
[1762181740845,3.78315278,176.57,176.52,10.49891089]
[1762181741070,3.78315278,176.56,176.52,11.21891089]
[1762181741274,3.78315278,176.55,176.52,11.21891089]
[1762181741481,5.50394891,176.58,176.52,5.55394891]
[1762181741482,3.78315278,176.54,176.52,5.55394891]
[1762181741645,3.78315278,176.57,176.52,5.55394891]
[1762181741845,3.78315278,176.56,176.53,4.83394891]
[1762181742069,3.78315278,176.55,176.52,5.55394891]
[1762181742376,3.78315278,176.54,176.52,5.55394891]
[1762181742579,3.78315278,176.53,176.52,5.55394891]
[1762181742782,3.78315278,176.53,176.52,20.592]
[1762181742979,3.78315278,176.53,176.48,5.55394891]
[1762181743275,3.78315278,176.52,176.51,20.592]
[1762181743466,3.78315278,176.52,176.51,26.14594891]
[1762181744093,3.78315278,176.52,176.5,4.83394891]
[1762181744264,3.78315278,176.51,176.5,4.83394891]
[1762181744764,3.78315278,176.51,176.5,5.55394891]
[1762181745654,3.78315278,176.51,176.49,4.83394891]
[1762181745854,3.78315278,176.5,176.49,5.55394891]
[1762181746088,3.78315278,176.5,176.49,4.83394891]
[1762181746392,3.80238669,176.54,176.49,7.1652359]
[1762181746555,3.80244527,176.53,176.5,7.1652359]
[1762181746756,3.80244527,176.52,176.51,7.1652359]
[1762181747174,3.80244527,176.52,176.51,7.8852359]
[1762181747555,3.80244527,176.52,176.51,13.55063729]
[1762181747756,3.80244527,176.52,176.51,34.14263729]
[1762181747963,4.69689961,176.57,176.51,34.14263729]
[1762181748256,3.80306103,176.56,176.54,7.1652359]
[1762181748479,3.80306103,176.55,176.53,7.1652359]
[1762181748788,4.69689961,176.58,176.52,0.72]
[1762181748789,3.80306103,176.54,176.52,0.72]
[1762181748987,4.69689961,176.58,176.53,12.82985183]
[1762181749195,3.80352312,176.57,176.54,7.1652359]
[1762181749385,3.80352312,176.56,176.55,7.8852359]
[1762181749765,3.80352312,176.56,176.55,7.1652359]
[1762181750459,3.80352312,176.56,176.54,7.1652359]
[1762181750662,11.63875902,176.55,176.37,7.0971624]
[1762181750892,10.96875902,176.54,176.48,7.1652359]
[1762181751191,3.80352312,176.53,176.49,7.1652359]
[1762181751394,3.80352312,176.52,176.51,7.1652359]
[1762181751688,4.69689961,176.58,176.51,27.7572359]
[1762181751991,3.80655561,176.57,176.52,0.72]
[1762181752177,5.36689961,176.6,176.56,7.1652359]
[1762181752378,4.4762955,176.59,176.56,7.1652359]
[1762181752590,3.8062955,176.58,176.56,7.1652359]
[1762181752900,3.8062955,176.57,176.56,7.1652359]
[1762181754899,4.4762955,176.57,176.51,0.72]
[1762181755189,61.86213551,176.59,176.42,1.99999999]
[1762181755190,3.8062955,176.56,176.53,12.82997241]
[1762181755394,3.8062955,176.55,176.54,7.1652359]
[1762181756174,3.8062955,176.55,176.53,7.1652359]
[1762181756490,3.8062955,176.54,176.53,7.1652359]
[1762181757072,3.8062955,176.54,176.53,13.54999543]
[1762181757501,3.8062955,176.54,176.5,0.72]
[1762181757689,3.8062955,176.53,176.49,12.83105354]
[1762181757993,3.8062955,176.52,176.49,12.83105354]
[1762181758173,3.8062955,176.51,176.49,13.55105354]
[1762181758374,3.8062955,176.5,176.49,5.66581764]
[1762181758585,3.8062955,176.5,176.49,12.83105354]
[1762181759103,3.8062955,176.5,176.49,13.55105354]
[1762181760579,0.67,176.55,176.49,13.55105354]
[1762181760778,3.81018571,176.54,176.52,7.1652359]
[1762181761089,3.81018571,176.53,176.5,0.72]
[1762181761287,3.81018571,176.52,176.46,20.592]
[1762181761488,3.81018571,176.51,176.46,21.312]
[1762181761689,8.57291785,176.5,176.43,0.72]
[1762181761999,3.81018571,176.49,176.43,0.72]
[1762181762198,5.43273214,176.5,176.43,0.72]
[1762181762199,3.81018571,176.48,176.46,7.1652359]
[1762181762494,3.81018571,176.48,176.43,0.72]
[1762181762495,3.81018571,176.47,176.43,7.1652359]
[1762181762696,3.81018571,176.46,176.44,0.67]
[1762181762886,3.8087203,176.48,176.45,7.1652359]
[1762181763193,5.43273214,176.53,176.47,12.83186041]
[1762181763401,3.80890647,176.52,176.47,5.66662451]
[1762181763599,3.80890647,176.51,176.47,5.66662451]
[1762181763789,3.80890647,176.5,176.45,0.67]
[1762181763984,3.80890647,176.49,176.45,6.33725485]
[1762181764301,3.80890647,176.48,176.45,20.50557448]
[1762181764596,4.76273214,176.52,176.46,0.67]
[1762181764809,3.80991785,176.51,176.46,0.67]
[1762181764980,3.80991785,176.5,176.46,0.67]
[1762181765181,3.80991785,176.49,176.46,0.67]
[1762181765384,3.80991785,176.48,176.47,5.66668555]
[1762181765790,3.80991785,176.48,176.47,0.67]
[1762181766199,3.80991785,176.48,176.44,5.66764905]
[1762181766373,3.80991785,176.47,176.46,7.1652359]
[1762181766577,3.80991785,176.47,176.45,7.1652359]
[1762181766784,3.80991785,176.46,176.45,7.1652359]
[1762181767014,3.80991785,176.46,176.45,7.8352359]
[1762181767517,0.14216157,176.52,176.46,5.66700668]
[1762181767518,3.8084229,176.5,176.46,5.66700668]
[1762181767708,3.8084229,176.49,176.46,20.50452339]
[1762181767890,5.43273214,176.53,176.48,7.1652359]
[1762181768089,5.43273214,176.53,176.51,7.1652359]
[1762181768090,3.80826055,176.52,176.51,7.1652359]
[1762181769598,3.80826055,176.52,176.5,7.1652359]
[1762181769783,3.80826055,176.51,176.49,5.66579357]
[1762181769981,3.80826055,176.5,176.49,6.33579357]
[1762181770404,3.80826055,176.5,176.48,5.66630669]
[1762181770577,4.76273214,176.53,176.48,5.66630669]
[1762181770578,3.80826055,176.49,176.48,5.66630669]
[1762181771014,3.80826055,176.49,176.48,12.83154259]
[1762181771418,3.80826055,176.49,176.47,5.66660283]
[1762181771591,5.43273214,176.53,176.48,7.1652359]
[1762181771796,3.80793492,176.52,176.51,7.1652359]
[1762181772117,3.80793492,176.52,176.49,7.1652359]
[1762181772332,3.80793492,176.51,176.49,7.1652359]
[1762181772512,3.80793492,176.5,176.47,20.50331671]
[1762181772828,4.76273214,176.58,176.49,7.1652359]
[1762181772991,4.76273214,176.58,176.57,7.1652359]
[1762181773191,4.76273214,176.59,176.57,7.1652359]
[1762181773420,4.76273214,176.59,176.58,7.12285291]
[1762181773635,4.76273214,176.59,176.57,7.1652359]
[1762181774320,3.63189058,176.61,176.57,7.1652359]
[1762181774523,5.43040209,176.59,176.56,7.1652359]
[1762181774689,0.67,176.58,176.53,0.67]
[1762181774894,0.67,176.58,176.53,7.1652359]
[1762181775094,7.1652359,176.57,176.5,5.66548223]
[1762181775397,7.1652359,176.57,176.52,7.1652359]
[1762181775596,7.1652359,176.57,176.52,12.83022049]
[1762181775796,7.8352359,176.56,176.51,7.1652359]
[1762181776019,7.1652359,176.53,176.47,20.592]
[1762181776316,7.1652359,176.51,176.47,5.66660956]
[1762181776518,7.1652359,176.51,176.46,0.67]
[1762181776718,7.1652359,176.51,176.45,5.66729137]
[1762181776719,7.1652359,176.5,176.45,5.66729137]
[1762181776924,7.8352359,176.51,176.46,7.1652359]
[1762181777522,7.1652359,176.52,176.47,13.5016827]
[1762181777727,9.93098926,176.54,176.5,7.1652359]
[1762181778226,10.60098926,176.54,176.5,7.1652359]
[1762181778813,0.67,176.54,176.5,7.1652359]
[1762181779010,20.592,176.55,176.51,7.8352359]
[1762181779214,4.76040209,176.57,176.54,7.1652359]
[1762181779431,4.76040209,176.58,176.56,7.1652359]
[1762181779597,4.76040209,176.6,176.57,12.82871214]
[1762181779800,4.76040209,176.62,176.56,5.6637182]
[1762181780001,9.93098926,176.62,176.58,7.1652359]
[1762181780303,5.43040209,176.62,176.58,7.1652359]
[1762181780626,5.43040209,176.62,176.6,7.1652359]
[1762181780627,0.67,176.62,176.6,7.1652359]
[1762181781006,23.55346089,176.63,176.6,7.1652359]
[1762181781207,24.22346089,176.63,176.6,7.1652359]
[1762181781728,28.98386298,176.63,176.58,5.66310348]
[1762181781905,7.72186298,176.63,176.58,5.66310348]
[1762181782104,2.96146089,176.63,176.58,5.66310348]
[1762181782305,2.96146089,176.63,176.58,6.33310348]
[1762181782499,2.96146089,176.63,176.59,0.67]
[1762181782729,0.1,176.65,176.59,0.67]
[1762181783617,0.67,176.64,176.58,5.66311847]
[1762181783830,12.01901374,176.65,176.58,6.33311847]
[1762181784027,4.86040209,176.65,176.58,6.33311847]
[1762181784210,14.64922978,176.65,176.58,6.33311847]
[1762181784409,50.0,176.64,176.58,0.67]
[1762181784623,3.8061051,176.63,176.58,0.67]
[1762181784813,18.49749645,176.62,176.54,0.67]
[1762181785022,3.8061051,176.61,176.54,0.67]
[1762181785221,3.8061051,176.6,176.54,0.67]
[1762181785419,3.8061051,176.59,176.55,5.66411781]
[1762181785628,3.8061051,176.58,176.55,5.66411781]
[1762181785828,3.8061051,176.57,176.55,5.66411781]
[1762181786024,3.8061051,176.61,176.55,6.33411781]
[1762181786338,3.8061051,176.61,176.52,0.67]
[1762181786339,7.15861165,176.59,176.52,0.67]
[1762181786533,7.15861165,176.59,176.49,19.8311519]
[1762181786534,7.15861165,176.57,176.5,0.67]
[1762181786839,3.8061051,176.56,176.5,0.67]
[1762181787044,11.91901374,176.6,176.5,0.67]
[1762181787212,3.80589496,176.59,176.5,0.67]
[1762181787530,3.80589496,176.58,176.51,19.82890487]
[1762181787737,3.80589496,176.57,176.51,19.82890487]
[1762181787925,3.80589496,176.56,176.52,0.67]
[1762181788115,12.57901374,176.6,176.52,0.67]
[1762181788311,3.80577271,176.59,176.52,0.67]
[1762181788510,3.80577271,176.58,176.52,21.262]
[1762181788716,3.80577271,176.57,176.52,0.67]
[1762181788938,3.8052107,176.6,176.53,0.67]
[1762181789146,3.8052107,176.59,176.53,0.67]
[1762181789436,25.35240209,176.63,176.53,0.67]
[1762181789613,3.80456161,176.62,176.54,19.82553528]
[1762181789932,3.80456161,176.61,176.54,19.82553528]
[1762181790133,3.80456161,176.6,176.55,0.67]
[1762181790335,3.80375556,176.61,176.55,0.67]
[1762181790639,3.80375556,176.6,176.55,0.67]
[1762181790837,3.80375556,176.61,176.55,0.67]
[1762181791134,42.542003,176.65,176.55,0.67]
[1762181791135,25.45240209,176.65,176.55,0.67]
[1762181791441,3.80261857,176.64,176.55,0.67]
[1762181791628,3.80261857,176.63,176.56,19.82328952]
[1762181791814,3.80261857,176.62,176.56,19.82328952]
[1762181792138,0.66,176.64,176.57,0.67]
[1762181792326,3.8022692,176.63,176.57,0.67]
[1762181792528,3.8022692,176.62,176.57,0.67]
[1762181792834,0.66,176.64,176.57,0.67]
[1762181792835,3.8022692,176.63,176.57,0.67]
[1762181793046,3.8022692,176.62,176.57,0.67]
[1762181793336,3.8022692,176.63,176.57,0.67]
[1762181793533,3.8022692,176.62,176.58,5.66315551]
[1762181793834,3.8022692,176.63,176.58,5.66315551]
[1762181794046,0.66,176.64,176.58,5.66315551]
[1762181794047,3.8022692,176.62,176.58,6.36315551]
[1762181794257,0.66,176.64,156.0,5.81]
[1762181794258,4.4722692,176.63,176.55,20.592]
[1762181794538,3.8022692,176.62,176.55,21.292]
[1762181794713,3.8022692,176.61,176.53,20.52665835]
[1762181794915,3.8022692,176.6,176.54,0.7]
[1762181795225,3.8022692,176.59,176.54,0.7]
[1762181795542,3.8022692,176.6,176.55,5.66411781]
[1762181795717,3.8022692,176.62,176.55,5.66411781]
[1762181795916,3.8022692,176.61,176.55,20.52441234]
[1762181796139,3.8022692,176.6,176.56,0.7]
[1762181796440,3.8022692,176.62,176.56,0.7]
[1762181796642,3.8022692,176.61,176.56,0.7]
[1762181796842,3.8022692,176.6,176.59,7.15907277]
[1762181797028,3.8022692,176.62,176.58,7.15907277]
[1762181797236,3.8022692,176.61,176.57,7.15907277]
[1762181797425,3.8022692,176.6,176.55,6.36411781]
[1762181797742,3.8022692,176.59,176.57,7.15907277]
[1762181797940,3.8022692,176.6,176.57,7.15907277]
[1762181798147,3.8022692,176.59,176.57,7.15907277]
[1762181798318,3.8022692,176.6,176.58,7.15907277]
[1762181798637,3.8022692,176.6,176.57,5.66341313]
[1762181798638,3.79613509,176.62,176.59,7.15907277]
[1762181798839,3.79613509,176.61,176.59,7.15907277]
[1762181799029,3.79613509,176.6,176.59,7.15907277]
[1762181799341,3.79613509,176.62,176.59,7.15907277]
[1762181799639,3.79613509,176.61,176.58,7.15907277]
[1762181799828,3.79613509,176.6,176.57,12.8224859]
[1762181800028,3.79613509,176.61,176.57,12.8224859]
[1762181800226,3.79613509,176.6,176.58,7.15907277]
[1762181800422,4.46613509,176.61,176.58,7.15907277]
[1762181800747,3.79613509,176.6,176.58,7.15907277]
[1762181801048,3.79613509,176.61,176.58,7.15907277]
[1762181801241,3.79613509,176.6,176.57,7.15907277]
[1762181801444,4.46613509,176.62,176.57,7.15907277]
[1762181801648,3.79613509,176.61,176.57,7.15907277]
[1762181801833,3.79613509,176.6,176.57,7.15907277]
[1762181802154,3.79613509,176.6,176.57,12.82247936]
[1762181802327,0.67,176.61,176.58,7.15907277]
[1762181802534,3.79613509,176.61,176.58,7.15907277]
[1762181802732,3.79613509,176.62,176.58,7.15907277]
[1762181802932,3.79613509,176.61,176.58,7.15907277]
[1762181803131,4.46613509,176.61,176.55,6.36402577]
[1762181803339,0.67,176.61,176.58,7.15907277]
[1762181803638,3.79613509,176.6,176.58,7.15907277]
[1762181803839,3.79613509,176.6,176.59,13.52190758]
[1762181804038,31.15082769,176.65,176.59,13.52190758]
[1762181804039,3.79613509,176.62,176.59,13.52190758]
[1762181804365,3.79613509,176.64,176.61,7.15907277]
[1762181804552,3.79613509,176.64,176.6,0.7]
[1762181804553,3.79613509,176.63,176.6,0.7]
[1762181804737,3.79613509,176.62,176.6,0.7]
[1762181805066,4.46613509,176.64,176.59,5.66283481]
[1762181805349,3.79613509,176.63,176.55,0.7]
[1762181805550,3.79613509,176.63,176.53,5.66475953]
[1762181805551,3.79613509,176.62,176.54,0.7]
[1762181805723,3.79613509,176.62,176.53,5.66475953]
[1762181805724,3.79613509,176.61,176.58,7.15907277]
[1762181805930,3.79613509,176.62,176.59,7.15907277]
[1762181806128,3.79613509,176.61,176.59,7.15907277]
[1762181806351,3.79613509,176.62,176.59,7.15907277]
[1762181806550,3.79613509,176.61,176.59,7.15907277]
[1762181806744,109.85107277,176.65,176.59,7.15907277]
[1762181806745,3.79613509,176.62,176.6,7.85907277]
[1762181806953,3.79613509,176.64,176.61,7.15907277]
[1762181807248,3.79613509,176.63,176.6,0.7]
[1762181807444,4.46613509,176.64,176.6,7.15907277]
[1762181807644,3.79613509,176.63,176.6,7.15907277]
[1762181807949,3.79613509,176.63,176.59,12.82190042]
[1762181808160,3.79613509,176.62,176.6,7.15907277]
[1762181808344,3.79613509,176.63,176.6,4.82517009]
[1762181808530,3.79613509,176.62,176.6,4.82517009]
[1762181808850,52.692,176.65,176.61,4.82517009]
[1762181808851,3.79613509,176.63,176.61,4.82517009]
[1762181809055,3.79613509,176.64,176.62,4.82517009]
[1762181809248,3.79613509,176.64,176.63,4.82517009]
[1762181809452,0.67,176.63,176.52,28.32475869]
[1762181809635,3.79642489,176.62,176.57,4.82517009]
[1762181809951,75.45240209,176.65,176.62,5.66187294]
[1762181809952,0.1,176.65,176.62,5.66187294]
[1762181810150,3.89625178,176.65,176.64,4.82517009]
[1762181810359,3.89633821,176.65,176.64,4.82517009]
[1762181811239,0.1,176.65,176.64,4.82517009]
[1762181812349,3.89633821,176.65,176.64,4.82517009]
[1762181813359,3.89633821,176.65,176.63,5.66130437]
[1762181813664,3.89888475,176.65,176.64,5.52517009]
[1762181814051,3.89888475,176.65,176.64,11.18640197]
[1762181814762,3.89888475,176.65,176.64,4.82517009]
[1762181815144,3.89888475,176.65,176.64,11.18640197]
[1762181815346,3.89888475,176.65,176.64,10.48640197]